Workbook

Sheet Key data
B1: Key data | J1: Instructions for the grant recipient: Please start by entering the key data before proceeding to the ‘Financing budget” tab. Please only enter information in the blue cells. All other cells will be calculated automatically.
B3: Name of the grant recipient: | H3: =IF(C3="Bitte eintragen","- Bitte den Namen Ihres Vereins im Feld <Name des Zuschussempfängers> eintragen; "," ") -> 
B5: Is this the first budget or is an existing contract being modified? | C5: First budget (no contract yet) | F5: =IF(C5="Modification to a contract","How many times has the contract been modified?:","") ->  | G5: Only select for modifications to a contract | H5: =IF(C5="Vertragsanpassung",1,0) -> 0
B6: Project title | H6: =IF(C6="Veranstaltung",1,IF(C6="Projekt",1,0)) -> 0
B7: Agreement number
B8: Do you require administration costs? | D8: Please enter the administration costs as a percentage | H8: =IF(C8="Ja, anderer Betrag",1,0) -> 0
B9: Are you providing a (financial) contribution of your own? | C9: Select | D9: Amount in EUR | H9: =IF(C9="Ja, anderer Betrag",1,0) -> 0
B10: How many donors will be co-financing the project (in addition to GIZ)? | C10: Select | D10: Name of the provider of third-party funding | F10: Amount of third-party funding in EUR
D11: Name of the provider of third-party funding | F11: Amount of third-party funding in EUR | H11: =IF(C11="Ja",1,0) -> 0
D12: Name of the provider of third-party funding | F12: Amount of third-party funding in EUR | H12: =IF(C12="Ja",1,0) -> 0
D13: Name of the provider of third-party funding | F13: Amount of third-party funding in EUR
D14: Name of the provider of third-party funding | F14: Amount of third-party funding in EUR
D15: Name of the provider of third-party funding | F15: Amount of third-party funding in EUR
D16: Name of the provider of third-party funding | F16: Amount of third-party funding in EUR
B17: Will funds be forwarded to third-party recipients? (Please note, this does not relate to services) | C17: Select | D17: This refers to third-party recipients that independently implement part of the recipient's project. A separate budget must be submitted and a commercial and legal eligibility check carried out by the GIZ project (needed criteria: legal entity and public-benefit nature).
B18: Will medicines and/or pesticides and/or mineral fertilizers be procured? | C18: Select | D18: A separate internal GIZ approval process is needed.
B19: Will materials and equipment worth more than EUR 1,000,000 be procured or is more than 50% of the contract value earmarked for the procurement of materials and equipment for a contract worth at least EUR 400,000? | C19: Select | D19: A separate internal GIZ approval process is needed.
B20: Are construction measures being financed? | C20: Select | D20: A separate internal GIZ approval process is needed. Please note that construction measures under local Contribution Contracts are only approved by GIZ in rare exceptions.
B21: Are tooltips to be displayed in the budget? ‘Yes’ recommended for filling out the form ‘No’ recommended for a better overview | C21: yes
B23: Date of preparation of the budget:

Sheet Financing budget
A1: =IF('Key data'!C3="","Please fill out the 'Key data' tab first (see below)",CONCATENATE("Budget - Annex 1",CHAR(10),'Key data'!C3," - ",'Key data'!C6,"",'Key data'!E6,"",IF(L5="VE",CONCATENATE(" - ",'Key data'!G5,"SUPPLEMENT TO THE CONTRACT",""),""))) -> Please fill out the 'Key data' tab first (see below) | J1: ='Key data'!C23 -> 00:00:00 | N1: no change | O1: Instructions: Please fill out the key data sheet before proceeding to the 'Financing budget’ tab. On this ‘Financing budget’ tab, please only enter information in the blue cells. All other cells will be calculated automatically.
A2: =IF(NOT(ISBLANK('Key data'!C7)),CONCATENATE("Agreement number: ",'Key data'!C7),"") -> 
J3: 2024-09 | N3: change
B4: Description | C4: Code | D4: Quantity | E4: Unit (person) | F4: Quantity | G4: Unit (e.g. month, contract, flight...) | H4: Eligible for support up to in EUR (price per unit) | I4: Total GIZ funding in EUR (up to) | J4: Own contributions / third-party financing in EUR (up to) | L4: =IF($L$5="VE",CONCATENATE("For contract modifications:",CHAR(10),"Has this budget line changed?"),"") ->  | O4: General information: This budget format is used as a basis for settlement. You may create additional files with more detailed information for your own internal use. All items listed in the budget must be included in the project description to ensure that the project reference is clear. The table contains formulas that must be retained. Please keep the two-decimal-place format. We advise rounding up units to the nearest full unit. Costs are agreed at a value of ‘up to’.
L5: =IF('Key data'!C5="Modification to a contract","VE","NOVE") -> NOVE
A6: 1 | B6: Staff (Note: Only direct costs for staff (monthly gross costs for the employer) may be settled. Add-ons such as staff overheads that are calculated pro-rata for staff are not eligible for support. Please indicate job functions, no names of individual persons. Staff costs are: a) Prime costs for employees of the Recipient (staff employed by your organization). The evidence for this budget line must be provided in the form of payslips or, in the case of pro rata working time for the financed project, in the form of payslips and time sheets. b) Costs for integrated consultants (self-employed or employed by a third party and seconded to the Recipient) and therefore not working on the basis of an employment contract with the Recipient, but who still work under the instructions/supervision of the Recipient, provided that this is legally permissible under the law applicable to the contract of the integrated consultant. For further requirements see Annex 3a: Requirements regarding budget and financial processing-giz.de | D6: =IF('Key data'!C21="yes",CONCATENATE("Tooltip:",Example!O5),"") -> Tooltip:The column "Eligible for support up to" should always indicate the monthly gross employer salary. Please state in column D the percentage that GIZ should finance. Statutory employee-related costs incurred under the respective employment contract law may be taken into account. As a general rule, social contributions are eligible for funding, as are payments that have been agreed in an employment contract or under a collective bargaining agreement (with the exception of bonus and profit-sharing payments). Any ancillary costs that do not fall under this category must be discussed and agreed, reviewed and noted in the budget line before the contract is prepared. Contracts for ‘mini-jobs’ or for students on temporary work are to be allocated to staff costs, even if no social contributions are incurred in this context. If funding is to be provided for several people on a pro-rata basis (e.g. three people working 75%), please increase the number of months as required and enter the number of people in the budget line description. | I6: =SUM(I7:I43) -> 0.00 € | J6: The pro-rata financing of budget lines should be avoided and applied only to personnel costs and fair-shared costs, if applicable. Costs that are incurred as part of the implementation of the project but are not financed by GIZ are calculated separately either as own contribution or, if applicable, as financial contribution of a third party. | L6: =IF(L5="VE","PLEASE NOTE: GIZ cannot cover any costs that arise as a result of currency fluctuations.","") -> 
E7: person | G7: months | I7: =ROUND(D7*F7*H7,2) -> 0.00 € | L7: No change
E8: person | G8: months | I8: =ROUND(D8*F8*H8,2) -> 0.00 € | L8: No change
E9: person | G9: months | I9: =ROUND(D9*F9*H9,2) -> 0.00 € | L9: No change
E10: person | G10: months | I10: 0.00 € | L10: No change
E11: person | G11: months | I11: 0.00 € | L11: No change
E12: person | G12: months | I12: =ROUND(D12*F12*H12,2) -> 0.00 € | L12: No change
E13: person | G13: months | I13: =ROUND(D13*F13*H13,2) -> 0.00 € | L13: No change
E14: person | G14: months | I14: 0.00 € | L14: No change
E15: person | G15: months | I15: =ROUND(D15*F15*H15,2) -> 0.00 € | L15: No change
E16: person | G16: months | I16: 0.00 € | L16: No change
E17: person | G17: months | I17: 0.00 € | L17: No change
E18: person | G18: months | I18: 0.00 € | L18: No change
E19: person | G19: months | I19: 0.00 € | L19: No change
E20: person | G20: months | I20: 0.00 € | L20: No change
E21: person | G21: months | I21: 0.00 € | L21: No change
E22: person | G22: months | I22: 0.00 € | L22: No change
E23: person | G23: months | I23: 0.00 € | L23: No change
E24: person | G24: months | I24: 0.00 € | L24: No change
E25: person | G25: months | I25: 0.00 € | L25: No change
E26: person | G26: months | I26: 0.00 € | L26: No change
E27: person | G27: months | I27: 0.00 € | L27: No change
E28: person | G28: months | I28: 0.00 € | L28: No change
E29: person | G29: months | I29: 0.00 € | L29: No change
E30: person | G30: months | I30: 0.00 € | L30: No change
E31: person | G31: months | I31: 0.00 € | L31: No change
E32: person | G32: months | I32: 0.00 € | L32: No change
E33: person | G33: months | I33: 0.00 € | L33: No change
E34: person | G34: months | I34: 0.00 € | L34: No change
E35: person | G35: months | I35: 0.00 € | L35: No change
E36: person | G36: months | I36: =ROUND(D36*F36*H36,2) -> 0.00 € | L36: No change
E37: person | G37: months | I37: 0.00 € | L37: No change
E38: person | G38: months | I38: 0.00 € | L38: No change
E39: person | G39: months | I39: 0.00 € | L39: No change
E40: person | G40: months | I40: 0.00 € | L40: No change
E41: person | G41: months | I41: 0.00 € | L41: No change
E42: person | G42: months | I42: 0.00 € | L42: No change
E43: person | G43: months | I43: =ROUND(D43*F43*H43,2) -> 0.00 € | L43: No change
A44: 2 | B44: External services (type/content of service) | D44: =IF('Key data'!C21="yes",CONCATENATE("Tooltip:",Example!O11),"") -> Tooltip:Enter the function title; no contract details (e.g. working hours); only state the planned value (the relevant guidelines governing contracts awards must be observed!); one budget line should be used for each service type; (all costs such as training, business trips incurred as part of service delivery under a service contract are displayed in one budget line). Events: Services provided by the same provider should be displayed in one budget line. (e.g.: if a hotel provides both catering and the venue, these costs belong in a single budget line; if another hotel is booked for accommodation, then these costs belong in a separate line). Any items for which the recipient receives income when running the event cannot be financed under the contract (e.g. rental for rooms on own premises). Funding can only be provided for costs for which evidence can actually be provided. | I44: =SUM(I45:I73) -> 0.00 € | L44: No change
D45: Contract/Contracts | I45: =ROUND(H45,2) -> 0.00 € | L45: No change
D46: Contract/Contracts | I46: =ROUND(H46,2) -> 0.00 € | L46: No change
D47: Contract/Contracts | I47: 0.00 € | L47: No change
D48: Contract/Contracts | I48: 0.00 € | L48: No change
D49: Contract/Contracts | I49: 0.00 € | L49: No change
D50: Contract/Contracts | I50: 0.00 € | L50: No change
D51: Contract/Contracts | I51: 0.00 € | L51: No change
D52: Contract/Contracts | I52: 0.00 € | L52: No change
D53: Contract/Contracts | I53: 0.00 € | L53: No change
D54: Contract/Contracts | I54: 0.00 € | L54: No change
D55: Contract/Contracts | I55: 0.00 € | L55: No change
D56: Contract/Contracts | I56: 0.00 € | L56: No change
D57: Contract/Contracts | I57: 0.00 € | L57: No change
D58: Contract/Contracts | I58: 0.00 € | L58: No change
D59: Contract/Contracts | I59: 0.00 € | L59: No change
D60: Contract/Contracts | I60: 0.00 € | L60: No change
D61: Contract/Contracts | I61: 0.00 € | L61: No change
D62: Contract/Contracts | I62: 0.00 € | L62: No change
D63: Contract/Contracts | I63: 0.00 € | L63: No change
D64: Contract/Contracts | I64: 0.00 € | L64: No change
D65: Contract/Contracts | I65: 0.00 € | L65: No change
D66: Contract/Contracts | I66: 0.00 € | L66: No change
D67: Contract/Contracts | I67: 0.00 € | L67: No change
D68: Contract/Contracts | I68: 0.00 € | L68: No change
D69: Contract/Contracts | I69: 0.00 € | L69: No change
D70: Contract/Contracts | I70: 0.00 € | L70: No change
D71: Contract/Contracts | I71: 0.00 € | L71: No change
D72: Contract/Contracts | I72: 0.00 € | L72: No change
D73: Contract/Contracts | I73: 0.00 € | L73: No change
A74: 3 | B74: Transportation / travel costs | D74: =IF('Key data'!C21="yes",CONCATENATE("Tooltip:",Example!O22),"") -> Tooltip:Travel costs usually include all types of transportation (e.g. fuel, vehicle hire, flight costs, bus transfer, mileage lumpsums (if budgeted), accommodation, per-diem allowances and visa charges). Costs are settled based on invoices and/or appropriate evidence for per-diems (e.g. allowances sheets signed by the participants). Please do not enter the number of flights - any deviations must be covered by a contract supplement, and the number of flights will be checked should an audit be carried out. | I74: =SUM(I75:I92) -> 0.00 € | L74: No change
I75: =ROUND(H75,2) -> 0.00 € | L75: No change
I76: =ROUND(H76,2) -> 0.00 € | L76: No change
I77: 0.00 € | L77: No change
I78: 0.00 € | L78: No change
I79: 0.00 € | L79: No change
I80: 0.00 € | L80: No change
I81: 0.00 € | L81: No change
I82: 0.00 € | L82: No change
I83: 0.00 € | L83: No change
I84: 0.00 € | L84: No change
I85: 0.00 € | L85: No change
I86: 0.00 € | L86: No change
I87: 0.00 € | L87: No change
I88: 0.00 € | L88: No change
I89: 0.00 € | L89: No change
I90: 0.00 € | L90: No change
I91: 0.00 € | L91: No change
I92: =ROUND(H92,2) -> 0.00 € | L92: No change
A93: 4 | B93: CO2-Compensation for flights | D93: =IF('Key data'!C21="Yes",CONCATENATE("Tooltip: ",Example!O30),"") -> Tooltip: CO2 emissions caused by flights can - if avoidance and reduction is not possible - be compensated. The requirement is that these flights are settled in the "Transportation / travel costs" budget line. Evidence of the flight compensation costs are vouchers from the compensation provider, which must show the following information: Flight route (start and destination), date, booking class and the calculated amount of CO2. If this information is not stated on the compensation provider's vouchers, the information on the flight route (start, destination, date, booking class) and the calculated amount of CO2 must be added by the recipient. | I93: =SUM(I94:I98) -> 0.00 € | L93: No change
D94: Compensation | I94: =ROUND(H94,2) -> 0.00 € | L94: no change
D95: Compensation | I95: =ROUND(H95,2) -> 0.00 € | L95: No change
D96: Compensation | I96: 0.00 € | L96: no change
D97: Compensation | I97: 0.00 € | L97: No change
D98: Compensation | I98: 0.00 € | L98: no change
A99: 5 | B99: Procurement of materials and equipment | D99: =IF('Key data'!C21="yes",CONCATENATE("Tooltip:",Example!O37),"") -> Tooltip:Any procured goods that are included in a single invoice should be displayed in one budget line. For example, you can list IT equipment in one budget line. In this case, you should specify in brackets what goods are likely to be procured. You must provide additional details for medicines and pesticides and mineral fertilizers as their procurement is subject to approval. | I99: =SUM(I100:I115) -> 0.00 € | L99: No change
I100: =ROUND(H100,2) -> 0.00 € | L100: No change
I101: =ROUND(H101,2) -> 0.00 € | L101: No change
I102: 0.00 € | L102: No change
I103: 0.00 € | L103: No change
I104: 0.00 € | L104: No change
I105: 0.00 € | L105: No change
I106: 0.00 € | L106: No change
I107: 0.00 € | L107: No change
I108: 0.00 € | L108: No change
I109: 0.00 € | L109: No change
I110: 0.00 € | L110: No change
I111: 0.00 € | L111: No change
I112: 0.00 € | L112: No change
I113: 0.00 € | L113: No change
I114: 0.00 € | L114: No change
I115: 0.00 € | L115: No change
A116: 6 | B116: Other costs / consumables | D116: =IF('Key data'!C21="yes",CONCATENATE("Tooltip:",Example!O48),"") -> Tooltip:Please note that indirect costs are classed as administration costs. Only direct costs can be budgeted as individual budget lines. For rental costs, only direct costs, i.e. basic rent exclusive of ancillary costs, can be calculated. Include ancillary costs as indirect costs, i.e. as administration costs. Unlike procured goods, which are used over a long period of time, consumables are commodities that are used up, e.g. ink cartridges or printer paper. | I116: =SUM(I117:I132) -> 0.00 € | L116: No change
I117: =ROUND(H117,2) -> 0.00 € | L117: No change
I118: =ROUND(H118,2) -> 0.00 € | L118: No change
I119: 0.00 € | L119: No change
I120: 0.00 € | L120: No change
I121: 0.00 € | L121: No change
I122: 0.00 € | L122: No change
I123: 0.00 € | L123: No change
I124: 0.00 € | L124: No change
I125: 0.00 € | L125: No change
I126: 0.00 € | L126: No change
I127: 0.00 € | L127: No change
I128: 0.00 € | L128: No change
I129: 0.00 € | L129: No change
I130: 0.00 € | L130: No change
I131: 0.00 € | L131: No change
I132: 0.00 € | L132: No change
A133: 7 | B133: Funds for direct support of third-party beneficiaries (Note: This budget line refers solely to financial contributions to third-party beneficiaries. These contributions should not be used for the purchase of medicines, pesticides and/or mineral fertilizers. The selection process for the third-party beneficiaries has to be described in the project description. Provision of evidence: see sub-budget line.) | D133: =IF('Key data'!C21="yes",CONCATENATE("Tooltip:",Example!O59),"") -> Tooltip:Please take note of the information provided in the budget line. The provision of evidence must be agreed and indicated in the budget. The selection criteria are to be explained in the project description. NB: In this context, the term ‘third-party beneficiaries’ refers solely to individuals/entities that benefit from the recipient’s project. This includes start-up funding, funding for initiatives, cash-for-work, funding competitions, grants, etc. Arrangements on the provision of evidence must be agreed. You will need to contact the Contract Management Section for advice on specific details. | I133: =SUM(I134:I143) -> 0.00 € | L133: No change
B134: XXX (Settled against ...) | I134: =ROUND(D134*H134,2) -> 0.00 € | L134: No change
B135: XXX (Settled against ...) | I135: =ROUND(D135*H135,2) -> 0.00 € | L135: No change
B136: XXX (Settled against ...) | I136: 0.00 € | L136: No change
B137: XXX (Settled against ...) | I137: 0.00 € | L137: No change
B138: XXX (Settled against ...) | I138: 0.00 € | L138: No change
B139: XXX (Settled against ...) | I139: 0.00 € | L139: No change
B140: XXX (Settled against ...) | I140: 0.00 € | L140: No change
B141: XXX (Settled against ...) | I141: 0.00 € | L141: No change
B142: XXX (Settled against ...) | I142: 0.00 € | L142: No change
B143: XXX (Settled against ...) | I143: 0.00 € | L143: No change
A144: 8 | B144: Fair-Shared Costs | D144: =IF('Key data'!C21="yes",CONCATENATE("Tooltip:",Example!O64),"") -> Tooltip:This budget line is only for organizations that operate with an allocation or apportionment of overhead costs in their accounting systems and can provide corresponding evidence, provided these costs are not assigned to administrative costs. The type of evidence required will be determined on an individual basis. A specific example is the percentage proof based on total costs and timesheets. | I144: =SUM(I145:I149) -> 0.00 €
I145: =ROUND(H145,2) -> 0.00 € | L145: No change
I146: =ROUND(H146,2) -> 0.00 € | L146: No change
I147: 0.00 € | L147: No change
I148: 0.00 € | L148: No change
I149: 0.00 € | L149: No change
B150: Subtotal – direct costs | I150: =I6+I44+I74+I93+I99+I116+I133+I144 -> 0.00 €
A151: 9 | B151: Administration costs | D151: =IF('Key data'!C21="yes",CONCATENATE("Tooltip:",Example!O68),"") -> Tooltip:The administration costs are normally covered by the recipient’s own contribution. GIZ can cover a small portion of such costs in cases where the recipient is unable to do so. The type and amount of the costs may have to be confirmed in advance by an auditor. The contract management section must be informed if the administration costs do not pertain to all budget lines. | I151: =I152 -> 0.00 €
B152: Administration costs (on budget lines 1 - X) | D152: ='Key data'!E8 -> 0.00% | H152: =I150 -> 0.00 € | I152: =ROUND(D152*H152,2) -> 0.00 € | L152: No change
B153: Subtotal – Funding by GIZ (up to – upon provision of evidence)* (direct costs + administration costs) | I153: =I150+I151 -> 0.00 €
A154: 10 | B154: Forwarding of funds to third-party recipients – a detailed budget must be provided – | D154: =IF('Key data'!C21="yes",CONCATENATE("Tooltip:",Example!O71),"") -> Tooltip:These are third-party recipients (co-implementation partners) that independently implement part of the project. A separate budget must be submitted and a commercial and legal eligibility check must be carried out. | I154: =SUM(I155:I160) -> 0.00 €
B155: XYZ (name of the third-party recipient) | D155: Forwarding of funds | H155: ='Forwarding of funds'!I144 -> 0.00 € | I155: =H155 -> 0.00 € | L155: No change
B156: XYZ (name of the third-party recipient) | D156: Forwarding of funds | H156: 0.00 € | I156: =H156 -> 0.00 € | L156: No change
B157: XYZ (name of the third-party recipient) | D157: Forwarding of funds | H157: 0.00 € | I157: =H157 -> 0.00 € | L157: No change
B158: XYZ (name of the third-party recipient) | D158: Forwarding of funds | H158: 0.00 € | I158: 0.00 € | L158: No change
B159: XYZ (name of the third-party recipient) | D159: Forwarding of funds | H159: 0.00 € | I159: 0.00 € | L159: No change
B160: XYZ (name of the third-party recipient) | D160: Forwarding of funds | H160: 0.00 € | I160: 0.00 € | K160: Funds in % | L160: No change
B161: GIZ funding (up to – upon provision of evidence)* | I161: =I153+I154 -> 0.00 € | K161: =IFERROR(I161/$I$171,"") -> 
A162: 11 | B162: Own Contributions / third-party financing | D162: =IF('Key data'!C21="yes",CONCATENATE("Tooltip:",Example!O76),"") -> Tooltip:Only enter the overall value of own contibutions/the third-party financing. Include a brief outline of the proportional financing in the project description. | J162: =SUM(J163:J170) -> 0.00 €
B163: =_xlfn.IFS('Key data'!C9="no","no own contibution",'Key data'!C9="yes",'Key data'!C3,'Key data'!C9="Select", "Please ensure that you have entered all necessary information in the 'key data' worksheet",TRUE,"") -> Please ensure that you have entered all necessary information in the 'key data' worksheet | D163: Contribution | H163: =_xlfn.IFS('Key data'!$C$9="Auswählen", "",'Key data'!$C$9>0,'Key data'!E9, TRUE,"") -> 0.00 € | J163: =H163 -> 0.00 € | K163: =IFERROR(J163/$I$171,"") ->  | L163: No change
B164: =_xlfn.IFS('Key data'!C10=0,"No third-party financing",'Key data'!C10= "Select", "Please ensure that you have entered all necessary information in the 'key data' worksheet",'Key data'!C10>0,'Key data'!E10,TRUE,"") -> Please ensure that you have entered all necessary information in the 'key data' worksheet | D164: Contribution | H164: =_xlfn.IFS('Key data'!$C$10="Auswählen", "",'Key data'!$C$10>0,'Key data'!G10, TRUE,"") -> 0.00 € | J164: =H164 -> 0.00 € | K164: =IFERROR(J164/$I$171,"") ->  | L164: No change
B165: =_xlfn.IFS('Key data'!C10=0,"No third-party financing",'Key data'!C10= "Select", "Please ensure that you have entered all necessary information in the 'key data' worksheet",'Key data'!C10>0,'Key data'!E11,TRUE,"") -> Please ensure that you have entered all necessary information in the 'key data' worksheet | D165: Contribution | H165: =_xlfn.IFS('Key data'!$C$10="Auswählen", "",'Key data'!$C$10>0,'Key data'!G11, TRUE,"") -> 0.00 € | J165: 0.00 € | L165: No change
B166: =_xlfn.IFS('Key data'!C10=0,"No third-party financing",'Key data'!C10= "Select", "Please ensure that you have entered all necessary information in the 'key data' worksheet",'Key data'!C10>0,'Key data'!E12,TRUE,"") -> Please ensure that you have entered all necessary information in the 'key data' worksheet | D166: Contribution | H166: =_xlfn.IFS('Key data'!$C$10="Auswählen", "",'Key data'!$C$10>0,'Key data'!G12, TRUE,"") -> 0.00 € | J166: 0.00 € | L166: No change
B167: =_xlfn.IFS('Key data'!C10=0,"No third-party financing",'Key data'!C10="Select","Please ensure that you have entered all necessary information in the 'key data' worksheet",'Key data'!C10>0,'Key data'!E13,TRUE,"") -> Please ensure that you have entered all necessary information in the 'key data' worksheet | D167: Contribution | H167: =_xlfn.IFS('Key data'!$C$10="Auswählen", "",'Key data'!$C$10>0,'Key data'!G13, TRUE,"") -> 0.00 € | J167: 0.00 € | L167: No change
B168: =_xlfn.IFS('Key data'!C10=0,"No third-party financing",'Key data'!C10= "Select", "Please ensure that you have entered all necessary information in the 'key data' worksheet",'Key data'!C10>0,'Key data'!E14,TRUE,"") -> Please ensure that you have entered all necessary information in the 'key data' worksheet | D168: Contribution | H168: =_xlfn.IFS('Key data'!$C$10="Auswählen", "",'Key data'!$C$10>0,'Key data'!G14, TRUE,"") -> 0.00 € | J168: 0.00 € | L168: No change
B169: =_xlfn.IFS('Key data'!C10=0,"No third-party financing",'Key data'!C10= "Select","Please ensure that you have entered all necessary information in the 'key data' worksheet",'Key data'!C10>0,'Key data'!E15,TRUE,"") -> Please ensure that you have entered all necessary information in the 'key data' worksheet | D169: Contribution | H169: =_xlfn.IFS('Key data'!$C$10="Auswählen", "",'Key data'!$C$10>0,'Key data'!G15, TRUE,"") -> 0.00 € | J169: 0.00 € | L169: No change
B170: =_xlfn.IFS('Key data'!C10=0,"No third-party financing",'Key data'!C10= "Select","Please ensure that you have entered all necessary information in the 'key data' worksheet",'Key data'!C10>0,'Key data'!E16,TRUE,"") -> Please ensure that you have entered all necessary information in the 'key data' worksheet | D170: Contribution | H170: =_xlfn.IFS('Key data'!$C$10="Auswählen", "",'Key data'!$C$10>0,'Key data'!G16, TRUE,"") -> 0.00 € | J170: 0.00 € | K170: =IFERROR(J170/$I$171,"") ->  | L170: No change
B171: Total funding | I171: =I161+J162 -> 0.00 € | K171: =SUM(K161:K170) -> 0.00%
B173: *All budget lines (with the exception of administration costs) are settled upon provision of evidence.
B175: Please note: In cases where GIZ funding is to be provided for the award of contracts for external services and/or materials and equipment and/or goods, the relevant procurement guidelines must be observed in accordance with the contractual provisions.
B177: Profits of the recipient will not be financed.
B179: For contract supplements: Please adjust the budget based on the most recently agreed budget and highlight any changes in a different colour. GIZ cannot bear costs that arise as a result of currency fluctuations.

Sheet Forwarding of funds
A1: Budget- Annex 1 | D1: Name of the third-party recipient: | J1: ='Key data'!C23 -> 00:00:00 | N1: no change
A2: =IF(NOT(ISBLANK('Key data'!C7)),CONCATENATE("Agreement number: ",'Key data'!C7),"") ->  | N2: change
B3: Description | C3: Code | D3: Quantity | E3: Unit (person) | F3: Quantity | G3: Unit (e.g. month, contract, flight...) | H3: Eligible for support up to in EUR (price per unit) | I3: Total GIZ funding in EUR (up to) | J3: Own contributions / third-party financing in EUR (up to) | L3: =IF($L$4="VE",CONCATENATE("For contract modifications:",CHAR(10),"Has this budget line changed?"),"") -> 
B4: =IF('Key data'!C21="yes","Note: Blue fields to be filled in by the third-party recipient","") -> Note: Blue fields to be filled in by the third-party recipient | I4: =IF('Key data'!C21="yes"," Note: calculated automatically","") -> Note: calculated automatically | L4: =IF('Key data'!C5="Modification to a contract","VE","NOVE") -> NOVE
A5: 1 | B5: Staff (Note: Only direct costs for staff (monthly gross costs for the employer) may be settled. Add-ons such as staff overheads that are calculated pro-rata for staff are not eligible for support. Please indicate job functions, no names of individual persons. Staff costs are: a) Prime costs for employees of the Recipient (staff employed by your organization). The evidence for this budget line must be provided in the form of payslips or, in the case of pro rata working time for the financed project, in the form of payslips and time sheets. b) Costs for integrated consultants (self-employed or employed by a third party and seconded to the Recipient) and therefore not working on the basis of an employment contract with the Recipient, but who still work under the instructions/supervision of the Recipient, provided that this is legally permissible under the law applicable to the contract of the integrated consultant. For further requirements see Annex 3a: Requirements regarding budget and financial processing-giz.de | D5: =IF('Key data'!C21="yes",CONCATENATE("Tooltip:",Example!O5),"") -> Tooltip:The column "Eligible for support up to" should always indicate the monthly gross employer salary. Please state in column D the percentage that GIZ should finance. Statutory employee-related costs incurred under the respective employment contract law may be taken into account. As a general rule, social contributions are eligible for funding, as are payments that have been agreed in an employment contract or under a collective bargaining agreement (with the exception of bonus and profit-sharing payments). Any ancillary costs that do not fall under this category must be discussed and agreed, reviewed and noted in the budget line before the contract is prepared. Contracts for ‘mini-jobs’ or for students on temporary work are to be allocated to staff costs, even if no social contributions are incurred in this context. If funding is to be provided for several people on a pro-rata basis (e.g. three people working 75%), please increase the number of months as required and enter the number of people in the budget line description. | I5: =SUM(I6:I42) -> 0.00 € | J5: The pro-rata financing of budget lines should be avoided and applied only to personnel costs and fair-shared costs, if applicable. Costs that are incurred as part of the implementation of the project but are not financed by GIZ are calculated separately either as own contribution or, if applicable, as financial contribution of a third party. | L5: =IF(L4="VE","PLEASE NOTE: GIZ cannot cover any costs that arise as a result of currency fluctuations.","") -> 
E6: person | F6: 1 | G6: months | I6: =ROUND(D6*F6*H6,2) -> 0.00 € | L6: No change
E7: person | G7: months | I7: =ROUND(D7*F7*H7,2) -> 0.00 € | L7: No change
E8: person | G8: months | I8: 0.00 € | L8: No change
E9: person | G9: months | I9: 0.00 € | L9: No change
E10: person | G10: months | I10: =ROUND(D10*F10*H10,2) -> 0.00 € | L10: No change
E11: person | G11: months | I11: 0.00 € | L11: No change
E12: person | G12: months | I12: 0.00 € | L12: No change
E13: person | G13: months | I13: 0.00 € | L13: No change
E14: person | G14: months | I14: 0.00 € | L14: No change
E15: person | G15: months | I15: 0.00 € | L15: No change
E16: person | G16: months | I16: 0.00 € | L16: No change
E17: person | G17: months | I17: =ROUND(D17*F17*H17,2) -> 0.00 € | L17: No change
E18: person | G18: months | I18: 0.00 € | L18: No change
E19: person | G19: months | I19: 0.00 € | L19: No change
E20: person | G20: months | I20: =ROUND(D20*F20*H20,2) -> 0.00 € | L20: No change
E21: person | G21: months | I21: 0.00 € | L21: No change
E22: person | G22: months | I22: 0.00 € | L22: No change
E23: person | G23: months | I23: 0.00 € | L23: No change
E24: person | G24: months | I24: 0.00 € | L24: No change
E25: person | G25: months | I25: 0.00 € | L25: No change
E26: person | G26: months | I26: 0.00 € | L26: No change
E27: person | G27: months | I27: 0.00 € | L27: No change
E28: person | G28: months | I28: 0.00 € | L28: No change
E29: person | G29: months | I29: 0.00 € | L29: No change
E30: person | G30: months | I30: 0.00 € | L30: No change
E31: person | G31: months | I31: 0.00 € | L31: No change
E32: person | G32: months | I32: 0.00 € | L32: No change
E33: person | G33: months | I33: 0.00 € | L33: No change
E34: person | G34: months | I34: 0.00 € | L34: No change
E35: person | G35: months | I35: 0.00 € | L35: No change
E36: person | G36: months | I36: 0.00 € | L36: No change
E37: person | G37: months | I37: 0.00 € | L37: No change
E38: person | G38: months | I38: 0.00 € | L38: No change
E39: person | G39: months | I39: 0.00 € | L39: No change
E40: person | G40: months | I40: 0.00 € | L40: No change
E41: person | G41: months | I41: 0.00 € | L41: No change
E42: person | G42: months | I42: 0.00 € | L42: No change
A43: 2 | B43: External services (type/content of service) | D43: =IF('Key data'!C21="yes",CONCATENATE("Tooltip:",Example!O11),"") -> Tooltip:Enter the function title; no contract details (e.g. working hours); only state the planned value (the relevant guidelines governing contracts awards must be observed!); one budget line should be used for each service type; (all costs such as training, business trips incurred as part of service delivery under a service contract are displayed in one budget line). Events: Services provided by the same provider should be displayed in one budget line. (e.g.: if a hotel provides both catering and the venue, these costs belong in a single budget line; if another hotel is booked for accommodation, then these costs belong in a separate line). Any items for which the recipient receives income when running the event cannot be financed under the contract (e.g. rental for rooms on own premises). Funding can only be provided for costs for which evidence can actually be provided. | I43: =SUM(I44:I60) -> 0.00 €
D44: Contract/Contracts | I44: =ROUND(H44,2) -> 0.00 € | L44: No change
D45: Contract/Contracts | I45: =ROUND(H45,2) -> 0.00 € | L45: No change
D46: Contract/Contracts | I46: 0.00 € | L46: No change
D47: Contract/Contracts | I47: 0.00 € | L47: No change
D48: Contract/Contracts | I48: 0.00 € | L48: No change
D49: Contract/Contracts | I49: 0.00 € | L49: No change
D50: Contract/Contracts | I50: 0.00 € | L50: No change
D51: Contract/Contracts | I51: 0.00 € | L51: No change
D52: Contract/Contracts | I52: 0.00 € | L52: No change
D53: Contract/Contracts | I53: 0.00 € | L53: No change
D54: Contract/Contracts | I54: 0.00 € | L54: No change
D55: Contract/Contracts | I55: 0.00 € | L55: No change
D56: Contract/Contracts | I56: 0.00 € | L56: No change
D57: Contract/Contracts | I57: 0.00 € | L57: No change
D58: Contract/Contracts | I58: 0.00 € | L58: No change
D59: Contract/Contracts | I59: 0.00 € | L59: No change
D60: Contract/Contracts | I60: 0.00 € | L60: No change
A61: 3 | B61: Transportation / travel costs | D61: =IF('Key data'!C21="yes",CONCATENATE("Tooltip:",Example!O22),"") -> Tooltip:Travel costs usually include all types of transportation (e.g. fuel, vehicle hire, flight costs, bus transfer, mileage lumpsums (if budgeted), accommodation, per-diem allowances and visa charges). Costs are settled based on invoices and/or appropriate evidence for per-diems (e.g. allowances sheets signed by the participants). Please do not enter the number of flights - any deviations must be covered by a contract supplement, and the number of flights will be checked should an audit be carried out. | I61: =SUM(I62:I77) -> 0.00 €
I62: =ROUND(H62,2) -> 0.00 € | L62: No change
I63: =ROUND(H63,2) -> 0.00 € | L63: No change
I64: 0.00 € | L64: No change
I65: 0.00 € | L65: No change
I66: 0.00 € | L66: No change
I67: 0.00 € | L67: No change
I68: 0.00 € | L68: No change
I69: 0.00 € | L69: No change
I70: 0.00 € | L70: No change
I71: 0.00 € | L71: No change
I72: 0.00 € | L72: No change
I73: 0.00 € | L73: No change
I74: 0.00 € | L74: No change
I75: 0.00 € | L75: No change
I76: 0.00 € | L76: No change
I77: 0.00 € | L77: No change
A78: 4 | B78: CO2-compensation for flights | D78: =IF('Key data'!C21="Yes",CONCATENATE("Tooltip: ",Example!O30),"") -> Tooltip: CO2 emissions caused by flights can - if avoidance and reduction is not possible - be compensated. The requirement is that these flights are settled in the "Transportation / travel costs" budget line. Evidence of the flight compensation costs are vouchers from the compensation provider, which must show the following information: Flight route (start and destination), date, booking class and the calculated amount of CO2. If this information is not stated on the compensation provider's vouchers, the information on the flight route (start, destination, date, booking class) and the calculated amount of CO2 must be added by the recipient. | I78: =SUM(I79:I90) -> 0.00 €
D79: compensation | I79: =ROUND(H79,2) -> 0.00 € | L79: No change
D80: compensation | I80: =ROUND(H80,2) -> 0.00 € | L80: No change
D81: compensation | I81: 0.00 € | L81: No change
D82: compensation | I82: 0.00 € | L82: No change
D83: compensation | I83: 0.00 € | L83: No change
D84: compensation | I84: 0.00 € | L84: No change
D85: compensation | I85: 0.00 € | L85: No change
D86: compensation | I86: 0.00 € | L86: No change
D87: compensation | I87: 0.00 € | L87: No change
D88: compensation | I88: 0.00 € | L88: No change
D89: compensation | I89: 0.00 € | L89: No change
D90: compensation | I90: =ROUND(H90,2) -> 0.00 € | L90: No change
A91: 5 | B91: Procurement of materials and equipment | D91: =IF('Key data'!C21="yes",CONCATENATE("Tooltip:",Example!O37),"") -> Tooltip:Any procured goods that are included in a single invoice should be displayed in one budget line. For example, you can list IT equipment in one budget line. In this case, you should specify in brackets what goods are likely to be procured. You must provide additional details for medicines and pesticides and mineral fertilizers as their procurement is subject to approval. | I91: =SUM(I92:I107) -> 0.00 €
I92: =ROUND(H92,2) -> 0.00 € | L92: No change
I93: =ROUND(H93,2) -> 0.00 € | L93: No change
I94: 0.00 € | L94: No change
I95: 0.00 € | L95: No change
I96: 0.00 € | L96: No change
I97: 0.00 € | L97: No change
I98: 0.00 € | L98: No change
I99: 0.00 € | L99: No change
I100: 0.00 € | L100: No change
I101: 0.00 € | L101: No change
I102: 0.00 € | L102: No change
I103: 0.00 € | L103: No change
I104: 0.00 € | L104: No change
I105: 0.00 € | L105: No change
I106: 0.00 € | L106: No change
I107: 0.00 € | L107: No change
A108: 6 | B108: Other costs / consumables | D108: =IF('Key data'!C21="yes",CONCATENATE("Tooltip:",Example!O48),"") -> Tooltip:Please note that indirect costs are classed as administration costs. Only direct costs can be budgeted as individual budget lines. For rental costs, only direct costs, i.e. basic rent exclusive of ancillary costs, can be calculated. Include ancillary costs as indirect costs, i.e. as administration costs. Unlike procured goods, which are used over a long period of time, consumables are commodities that are used up, e.g. ink cartridges or printer paper. | I108: =SUM(I109:I124) -> 0.00 €
I109: =ROUND(H109,2) -> 0.00 € | L109: No change
I110: =ROUND(H110,2) -> 0.00 € | L110: No change
I111: 0.00 € | L111: No change
I112: 0.00 € | L112: No change
I113: 0.00 € | L113: No change
I114: 0.00 € | L114: No change
I115: 0.00 € | L115: No change
I116: 0.00 € | L116: No change
I117: 0.00 € | L117: No change
I118: 0.00 € | L118: No change
I119: 0.00 € | L119: No change
I120: 0.00 € | L120: No change
I121: 0.00 € | L121: No change
I122: =ROUND(H122,2) -> 0.00 € | L122: No change
I123: 0.00 € | L123: No change
I124: =ROUND(H124,2) -> 0.00 € | L124: No change
A125: 7 | B125: Funds for direct support of third-party beneficiaries (Note: This budget line refers solely to financial contributions to third-party beneficiaries. These contributions should not be used for the purchase of medicines, pesticides and/or mineral fertilizers. The selection process for the third-party beneficiaries has to be described in the project description. Provision of evidence: see sub-budget line.) | D125: =IF('Key data'!C21="yes",CONCATENATE("Tooltip:",Example!O59),"") -> Tooltip:Please take note of the information provided in the budget line. The provision of evidence must be agreed and indicated in the budget. The selection criteria are to be explained in the project description. NB: In this context, the term ‘third-party beneficiaries’ refers solely to individuals/entities that benefit from the recipient’s project. This includes start-up funding, funding for initiatives, cash-for-work, funding competitions, grants, etc. Arrangements on the provision of evidence must be agreed. You will need to contact the Contract Management Section for advice on specific details. | I125: =SUM(I126:I131) -> 0.00 €
B126: XXX (Settled against ...) | I126: =ROUND(D126*H126,2) -> 0.00 € | L126: No change
B127: XXX (Settled against ...) | I127: =ROUND(D127*H127,2) -> 0.00 € | L127: No change
B128: XXX (Settled against ...) | I128: =ROUND(D128*H128,2) -> 0.00 € | L128: No change
B129: XXX (Settled against ...) | I129: =ROUND(D129*H129,2) -> 0.00 € | L129: No change
B130: XXX (Settled against ...) | I130: 0.00 € | L130: No change
B131: XXX (Settled against ...) | I131: 0.00 € | L131: No change
A132: 8 | B132: Fair-Shared Costs | D132: =IF('Key data'!C21="yes",CONCATENATE("Tooltip:",Example!O64),"") -> Tooltip:This budget line is only for organizations that operate with an allocation or apportionment of overhead costs in their accounting systems and can provide corresponding evidence, provided these costs are not assigned to administrative costs. The type of evidence required will be determined on an individual basis. A specific example is the percentage proof based on total costs and timesheets. | I132: =SUM(I133:I139) -> 0.00 €
I133: =ROUND(H133,2) -> 0.00 € | L133: No change
I134: =ROUND(H134,2) -> 0.00 € | L134: No change
I135: 0.00 € | L135: No change
I136: 0.00 € | L136: No change
I137: 0.00 € | L137: No change
I138: 0.00 € | L138: No change
I139: 0.00 € | L139: No change
B140: Subtotal – direct costs | I140: =I132+I125+I108+I91+I78+I61+I43+I5 -> 0.00 €
A141: 9 | B141: Administration costs | D141: =IF('Key data'!C21="yes",CONCATENATE("Tooltip:",Example!O68),"") -> Tooltip:The administration costs are normally covered by the recipient’s own contribution. GIZ can cover a small portion of such costs in cases where the recipient is unable to do so. The type and amount of the costs may have to be confirmed in advance by an auditor. The contract management section must be informed if the administration costs do not pertain to all budget lines. | I141: =I142 -> 0.00 €
B142: Administration costs (on budget lines 1-X) | D142: 0.00% | H142: =I140 -> 0.00 € | I142: =ROUND(D142*H142,2) -> 0.00 € | L142: No change
B143: Subtotal – GIZ funding (up to – upon provision of evidence)* (direct costs + administration costs) | I143: =I140+I141 -> 0.00 €
B144: GIZ funding (up to – upon provision of evidence)* | I144: =I143 -> 0.00 €
B146: *All budget lines (with the exception of administration costs) are settled upon provision of evidence.
B148: Please note: In cases where GIZ funding is to be provided for the award of contracts for external services and/or materials and equipment and/or goods, the relevant procurement guidelines must be observed in accordance with the contractual provisions.
B150: Profits of the third-party recipient will not be financed.
B152: For contract supplements: Please adjust the budget based on the most recently agreed budget and highlight any changes in a different colour. GIZ cannot bear costs that arise as a result of currency fluctuations.

Sheet Example
A1: Budget – Annex 1 | J1: ='Key data'!C34 -> 00:00:00 | O1: Instructions: This is merely intended to provide guidance in filling out the ‘Financing budget’ tab.
B3: Description | C3: Code | D3: Quantity | E3: Unit (person) | F3: Quantity | G3: Unit (e.g. month, contract, flight...) | H3: Eligible for support up to in EUR (price per unit) | I3: Total GIZ contribution in EUR (up to) | J3: Own contributions / third-party financing in EUR (up to) | O3: General information: This budget format is used as a basis for settlement. You may create additional files with more detailed information for your own internal use. All items listed in the budget must be included in the project description to ensure that the project reference is clear. The table contains formulas that must be retained. Please keep the two-decimal-place format. We advise rounding up units to the nearest full unit. Costs are agreed at a value of ‘up to’.
B4: Note: Blue fields to be filled in by the recipient | I4: Note: calculated automatically | O4: Notes on filling out the table
A5: 1 | B5: Staff (Note: Only direct costs for staff (monthly gross costs for the employer) may be settled. Add-ons such as staff overheads that are calculated pro-rata for staff are not eligible for support. Please indicate job functions, no names of individual persons. Staff costs are: a) Prime costs for employees of the Recipient (staff employed by your organization). The evidence for this budget line must be provided in the form of payslips or, in the case of pro rata working time for the financed project, in the form of payslips and time sheets. b) Costs for integrated consultants (self-employed or employed by a third party and seconded to the Recipient) and therefore not working on the basis of an employment contract with the Recipient, but who still work under the instructions/supervision of the Recipient, provided that this is legally permissible under the law applicable to the contract of the integrated consultant. For further requirements see Annex 3a: Requirements regarding budget and financial processing-giz.de | I5: =SUM(I6:I10) -> 94,000.00 € | J5: The pro-rata financing of budget lines should be avoided and applied only to personnel costs and fair-shared costs, if applicable. Costs that are incurred as part of the implementation of the project but are not financed by GIZ are calculated separately either as own contribution or, if applicable, as financial contribution of a third party. | O5: The column "Eligible for support up to" should always indicate the monthly gross employer salary. Please state in column D the percentage that GIZ should finance. Statutory employee-related costs incurred under the respective employment contract law may be taken into account. As a general rule, social contributions are eligible for funding, as are payments that have been agreed in an employment contract or under a collective bargaining agreement (with the exception of bonus and profit-sharing payments). Any ancillary costs that do not fall under this category must be discussed and agreed, reviewed and noted in the budget line before the contract is prepared. Contracts for ‘mini-jobs’ or for students on temporary work are to be allocated to staff costs, even if no social contributions are incurred in this context. If funding is to be provided for several people on a pro-rata basis (e.g. three people working 75%), please increase the number of months as required and enter the number of people in the budget line description.
B6: Project manager | D6: 100% | E6: person | F6: 20 | G6: months | H6: 3,000.00 € | I6: =D6*F6*H6 -> 60,000.00 €
B7: Financial manager | D7: 50% | E7: person | F7: 20 | G7: months | H7: 2,200.00 € | I7: =D7*F7*H7 -> 22,000.00 €
B8: Severance payments / statutory accruals | D8: 100% | E8: person | F8: 20 | G8: months | H8: 600.00 € | I8: 12,000.00 €
E9: person | G9: months | I9: 0.00 €
E10: person | G10: months | I10: 0.00 €
A11: 2 | B11: External services (type/content of service) | I11: =SUM(I12:I21) -> 7,000.00 € | O11: Enter the function title; no contract details (e.g. working hours); only state the planned value (the relevant guidelines governing contracts awards must be observed!); one budget line should be used for each service type; (all costs such as training, business trips incurred as part of service delivery under a service contract are displayed in one budget line). Events: Services provided by the same provider should be displayed in one budget line. (e.g.: if a hotel provides both catering and the venue, these costs belong in a single budget line; if another hotel is booked for accommodation, then these costs belong in a separate line). Any items for which the recipient receives income when running the event cannot be financed under the contract (e.g. rental for rooms on own premises). Funding can only be provided for costs for which evidence can actually be provided.
B12: Moderation services | D12: Contract/Contracts | H12: 5,000.00 € | I12: =ROUND(H12,2) -> 5,000.00 €
B13: Catering and room rental | D13: Contract/Contracts | H13: 2,000.00 € | I13: =ROUND(H13,2) -> 2,000.00 €
B14: Solar technology expert | D14: Contract/Contracts | I14: 0.00 €
B15: Expert for… | D15: Contract/Contracts | I15: 0.00 €
B16: External workers (not in an employment relationship with recipient that is subject to social insurance contributions) | D16: Contract/Contracts | I16: 0.00 €
B17: Consultancy assignments | D17: Contract/Contracts | I17: 0.00 €
B18: External companies, e.g. for bus transport | D18: Contract/Contracts | I18: 0.00 €
D19: Contract/Contracts | I19: 0.00 €
D20: Contract/Contracts | I20: 0.00 €
D21: Contract/Contracts | I21: 0.00 €
A22: 3 | B22: Transportation / travel costs | I22: =SUM(I23:I29) -> 14,500.00 € | O22: Travel costs usually include all types of transportation (e.g. fuel, vehicle hire, flight costs, bus transfer, mileage lumpsums (if budgeted), accommodation, per-diem allowances and visa charges). Costs are settled based on invoices and/or appropriate evidence for per-diems (e.g. allowances sheets signed by the participants). Please do not enter the number of flights - any deviations must be covered by a contract supplement, and the number of flights will be checked should an audit be carried out.
B23: International flights | D23: Flight | H23: 4,000.00 € | I23: =H23 -> 4,000.00 €
B24: Domestic flights | D24: Flight | H24: 500.00 € | I24: =H24 -> 500.00 €
B25: International travel costs (per-diem/overnight accommodation allowance, means of transport, visa, required vaccinations) | D25: Unit | H25: 10,000.00 € | I25: 10,000.00 €
B26: Domestic travel costs (per-diem/overnight accommodation allowance, means of transport) | D26: Unit | I26: 0.00 €
B27: Transportation costs for goods | D27: Unit | I27: 0.00 €
B28: Travel costs for workshop participants | D28: Unit | I28: 0.00 €
D29: Unit | I29: 0.00 €
A30: 4 | B30: CO2-Compensation for flights | I30: =SUM(I31:I36) -> 500.00 € | O30: CO2 emissions caused by flights can - if avoidance and reduction is not possible - be compensated. The requirement is that these flights are settled in the "Transportation / travel costs" budget line. Evidence of the flight compensation costs are vouchers from the compensation provider, which must show the following information: Flight route (start and destination), date, booking class and the calculated amount of CO2. If this information is not stated on the compensation provider's vouchers, the information on the flight route (start, destination, date, booking class) and the calculated amount of CO2 must be added by the recipient.
B31: International flights | D31: Compensation | H31: 300.00 € | I31: =H31 -> 300.00 €
B32: Domestic flights | D32: Compensation | H32: 200.00 € | I32: =H32 -> 200.00 €
I33: 0.00 €
I34: 0.00 €
I35: 0.00 €
I36: 0.00 €
A37: 5 | B37: Procurement of materials and equipment | I37: =SUM(I38:I47) -> 4,000.00 € | O37: Any procured goods that are included in a single invoice should be displayed in one budget line. For example, you can list IT equipment in one budget line. In this case, you should specify in brackets what goods are likely to be procured. You must provide additional details for medicines and pesticides and mineral fertilizers as their procurement is subject to approval.
B38: IT equipment (laptops, printers, overhead projectors, accessories) | D38: Procurement | H38: 4,000.00 € | I38: =ROUND(H38,2) -> 4,000.00 €
B39: Photographic equipment (camera and accessories) | I39: =ROUND(H39,2) -> 0.00 €
B40: XY machine (specify the machine – not a particular company or model) | I40: 0.00 €
B41: Furniture (desks, chairs, cupboards) | I41: 0.00 €
B42: Vehicles, specify type: e.g. electric car, armoured SUV, electric scooter | I42: 0.00 €
B43: Mobile phones | I43: 0.00 €
B44: in kind contributions to third-party beneficiares (evidence in form of procurement vouchers and handover records) | I44: 0.00 €
I45: 0.00 €
I46: 0.00 €
I47: 0.00 €
A48: 6 | B48: Other costs / consumables | I48: =SUM(I49:I58) -> 100.00 € | O48: Please note that indirect costs are classed as administration costs. Only direct costs can be budgeted as individual budget lines. For rental costs, only direct costs, i.e. basic rent exclusive of ancillary costs, can be calculated. Include ancillary costs as indirect costs, i.e. as administration costs. Unlike procured goods, which are used over a long period of time, consumables are commodities that are used up, e.g. ink cartridges or printer paper.
B49: Office materials (printer paper, ink cartridges, stationery) | D49: Unit | H49: 100.00 € | I49: =ROUND(H49,2) -> 100.00 €
B50: IT software, licenses | I50: =ROUND(H50,2) -> 0.00 €
B51: Packaging material for xxx | I51: 0.00 €
B52: Laboratory equipment and materials | I52: 0.00 €
B53: Hygiene products | I53: 0.00 €
B54: Tools | I54: 0.00 €
B55: Water | I55: 0.00 €
B56: Flyers/advertising materials | I56: 0.00 €
B57: Phone costs, phone cards, etc | I57: =ROUND(H57,2) -> 0.00 €
I58: 0.00 €
A59: 7 | B59: Funds for direct support of third-party beneficiaries (Note: This budget line refers solely to financial contributions to third-party beneficiaries. These contributions should not be used for the purchase of medicines, pesticides and/or mineral fertilizers. The selection process for the third-party beneficiaries has to be described in the project description. Provision of evidence: see sub-budget line.) | I59: =SUM(I60:I63) -> 75,600.00 € | O59: Please take note of the information provided in the budget line. The provision of evidence must be agreed and indicated in the budget. The selection criteria are to be explained in the project description. NB: In this context, the term ‘third-party beneficiaries’ refers solely to individuals/entities that benefit from the recipient’s project. This includes start-up funding, funding for initiatives, cash-for-work, funding competitions, grants, etc. Arrangements on the provision of evidence must be agreed. You will need to contact the Contract Management Section for advice on specific details.
B60: Cash-for-work (settled against provision of lists of paticipants, confirmation of receipt by signature or fingerprint; selection process is described in the project description) | D60: 20 | E60: People | H60: 30.00 € | I60: =D60*H60 -> 600.00 €
B61: Start-up financing (settlement is based on proof of actual use by the third-party beneficiary); Art.5.2 of the contract applies | D61: 5 | E61: Start-ups | H61: 15,000.00 € | I61: =D61*H61 -> 75,000.00 €
I62: 0.00 €
I63: 0.00 €
A64: 8 | B64: Fair-Shared Costs | I64: =SUM(I65:I66) -> 0.00 € | O64: This budget line is only for organizations that operate with an allocation or apportionment of overhead costs in their accounting systems and can provide corresponding evidence, provided these costs are not assigned to administrative costs. The type of evidence required will be determined on an individual basis. A specific example is the percentage proof based on total costs and timesheets.
B65: direct fair-shared costs (6.42% of the direct costs of budget lines 1-6, based on the recipient fair-shared cost model) | E65: Unit | I65: =D65*H65 -> 0.00 €
E66: Unit | I66: =D66*H66 -> 0.00 €
B67: Subtotal – direct costs | I67: =I5+I11+I22+I30+I37+I48+I59+I64 -> 195,700.00 €
A68: 9 | B68: Administration costs | I68: =I69 -> 9,785.00 € | O68: The administration costs are normally covered by the recipient’s own contribution. GIZ can cover a small portion of such costs in cases where the recipient is unable to do so. The type and amount of the costs may have to be confirmed in advance by an auditor. The contract management section must be informed if the administration costs do not pertain to all budget lines.
B69: Administration costs (on budget lines 1-8) | D69: 5.00% | H69: =I67 -> 195,700.00 € | I69: =ROUND(D69*H69,2) -> 9,785.00 €
B70: Subtotal – Funding by GIZ (up to – upon provision of evidence)* (direct costs + administration costs) | I70: =I67+I68 -> 205,485.00
A71: 10 | B71: Forwarding of funds to third-party recipients – a detailed budget must be provided | I71: =SUM(I72:I74) -> 10,000.00 € | O71: These are third-party recipients (co-implementation partners) that independently implement part of the project. A separate budget must be submitted and a commercial and legal eligibility check must be carried out.
B72: OPQ | D72: Forwarding of funds | H72: 10,000.00 € | I72: =H72 -> 10,000.00 €
B73: XYZ (name of the third-party recipient) | D73: Forwarding of funds | I73: =H73 -> 0.00 €
B74: XYZ (name of the third-party recipient) | D74: Forwarding of funds | I74: 0.00 € | K74: Funds in %
B75: GIZ funding (up to – upon provision of evidence)* | I75: =I70+I71 -> 215,485.00 € | J75: =I75 -> 215,485.00 € | K75: =J75/$I$81 -> 93.49%
A76: 11 | B76: Own Contributions/third-party financing | J76: =SUM(J77:J80) -> 15,000.00 € | O76: Only enter the overall value of own contibutions/the third-party financing. Include a brief outline of the proportional financing in the project description.
B77: ABC (own contribution) | D77: Contribution | H77: 5,000.00 € | J77: =H77 -> 5,000.00 € | K77: =J77/$I$81 -> 2.17%
B78: DEF (third-party financing) | D78: Contribution | H78: 10,000.00 € | J78: =H78 -> 10,000.00 € | K78: 4.34%
D79: Contribution
D80: Contribution
B81: Total financing | I81: =I75+J76 -> 230,485.00 € | K81: =SUM(K75:K80) -> 100.00%
B83: *All budget lines (with the exception of administration costs) are settled upon provision of evidence.
B85: Please note: In cases where GIZ funding is to be provided for the award of contracts for external services and/or materials and equipment and/or goods, the relevant procurement guidelines must be observed in accordance with the contractual provisions.
B88: Profits of the recipient will not be financed.
B90: Self-prepared vouchers for the use of the beneficiary's (third- party's) internal facilities and spaces may be submitted, provided that it is confirmed that a) it involves reallocation of the beneficiary's (third-party's) costs within its own organization; GIZ reserves the right to randomly verify the self-costs b) the use of comparable facilities at market prices does not result in cost savings.
B92: For contract supplements: Please adjust the budget based on the most recently agreed budget and highlight any changes in a different colour. GIZ cannot cover any costs that arise as a result of currency fluctuations. | O92: Explain the re-allocation of budget funds in the request to modify a contract. A reason must be given particularly in cases where staff costs have increased.
